Workbook

Sheet Conditional normals
B1: Expected Value of a Conditional Normal Variate
B3: z | C3: E[normal random variable | value is ³ z] | D3: E[normal random variable | value is £ z]
B4: =mu-5*sigma -> -5 | C4: =mu+sigma^2*NORMDIST(B4,mu,sigma,FALSE)/(1-NORMDIST(B4,mu,sigma,TRUE)) -> 1.486719941e-06 | D4: =mu-sigma^2*NORMDIST(B4,mu,sigma,FALSE)/NORMDIST(B4,mu,sigma,TRUE) -> -5.186503967 | E4: the formulas are used in this row
B5: =mu-4*sigma -> -4 | C5: 0.0001338344645 | D5: -4.225607144
B6: =B5+sigma -> -3 | C6: 0.004437839042 | D6: -3.283098655 | E6: with these values
B7: -2 | C7: 0.05524786268 | D7: -2.373215533 | E7: m = | F7: 0
B8: -1 | C8: 0.2875999709 | D8: -1.525135276 | E8: s = | F8: 1
B9: 0 | C9: 0.7978845608 | D9: -0.7978845608
B10: 1 | C10: 1.525135276 | D10: -0.2875999709 | F10: E( Z | Z ≥ z ) | G10: =mu+sigma^2*NORMDIST(z,mu,sigma,FALSE)/(1-NORMDIST(z,mu,sigma,TRUE))
B11: 2 | C11: 2.373215533 | D11: -0.05524786268 | F11: E( Z | Z £ z ) | G11: =mu-sigma^2*NORMDIST(z,mu,sigma,FALSE)/NORMDIST(z,mu,sigma,TRUE)
B12: 3 | C12: 3.283098655 | D12: -0.004437839042
B13: 4 | C13: 4.225607144 | D13: -0.0001338344645
B14: 5 | C14: 5.186503966 | D14: -1.486719941e-06 | G14: Example:
B16: In most of the examples we've analyzed, we've assumed that any randomness | G16: I have 1200 units of stock on hand, and my next shipment will arrive in a week.
B17: is uniform, i.e., that unknown quantities are equally likely to take any value | G17: Weekly demand is normally distributed, with a mean of 1000 and a standard
B18: between specified lower and upper limits. This assumption, while a touch | G18: deviation of 150.
B19: unrealistic, has enabled us to work through the examples and extract the key
B20: conceptual points without needing to worry about complex calculations. | G20: If I run out, what is the expected number of units of unsatisfied demand I'll face?
B22: A more realistic assumption would be that the uncertainty we face is normally | G22: =1-NORMDIST(1200,1000,150,TRUE) -> 0.09121121973 | H22: Pr(demand ≥ 1200) | K22: =showformula(G22) -> =1-NORMDIST(1200,1000,150,TRUE)
B23: distributed. If this were the case, we would find ourselves occasionally | G23: =1000+150^2*NORMDIST(1200,1000,150,FALSE)/(1-NORMDIST(1200,1000,150,TRUE)) -> 1269.72023 | H23: E[demand | demand ≥ 1200] | K23: =showformula(G23) -> =1000+150^2*NORMDIST(1200,1000,150,FALSE)/(1-NORMDIST(1200,1000,150,TRUE))
B24: needing to compute conditional expectations in one tail of the normal | G24: =G23-1200 -> 69.72023042 | H24: E[shortage | I run out] | K24: =showformula(G24) -> =G23-1200
B25: distribution. (Such computations arise in problems running the gamut from
B26: adverse selection to inventory analysis: given that our offer is accepted, …, or
B27: given that we stock out, … .) | G27: If I don't run out, what's the expected number of items I'll have on hand when the
G28: next order comes in?
B29: The formulas used to determine the second and third columns of the table given
B30: here aren't pretty - but they do work for values of z between -5 and 5. (A wide | G30: =NORMDIST(1200,1000,150,TRUE) -> 0.9087887803 | H30: Pr(demand £ 1200) | K30: =showformula(G30) -> =NORMDIST(1200,1000,150,TRUE)
B31: enough range for all practical purposes.) | G31: =1000-150^2*NORMDIST(1200,1000,150,FALSE)/NORMDIST(1200,1000,150,TRUE) -> 972.929341 | H31: E[demand | demand £ 1200] | K31: =showformula(G31) -> =1000-150^2*NORMDIST(1200,1000,150,FALSE)/NORMDIST(1200,1000,150,TRUE)
G32: =1200-G31 -> 227.070659 | H32: E[surplus | I don't run out] | K32: =showformula(G32) -> =1200-G31
G34: As expected, 1269.72 * 9.12% + 972.83 * 90.88% = | L34: =G22*G23+G30*G31 -> 1000 | M34: =showformula(L34) -> =G22*G23+G30*G31
G36: That is (using the "it depends" formula for expectations),
G38: E[demand | demand ≥ 1200] * Pr(demand ≥ 1200)
G39: + E[demand | demand £ 1200] * Pr(demand £ 1200) = E[demand] .

Sheet Option pricing
B1: Option Pricing
B3: For $50, you purchase 100 $70 call options on a share of common stock | K3: The famous Black-Scholes option-pricing formula modifies this
B4: in XYZ Company. The stock is currently trading at $66/share. The options | K4: derivation in two ways: It takes the time-value of money into
B5: expire 50 business days from now: | K5: account, and it tracks share price changes in percentages
K6: instead of raw currency. Price changes over time are then
B7: They will be worth nothing at expiration if the closing share price is $70 or | K7: multiplicative (rather than additive), and so the closing price is
B8: less. Otherwise, you plan on exercising the option on the day of expiration | K8: lognormally distributed (its logarithm is normally distributed).
B9: and immediately selling the stock for a net profit of
B11: 100*(closing price - $70) -$50
B13: You believe that the stock will rise, on average, by $0.06 per trading day,
B14: with a daily standard deviation of $0.50. What is your expected profit from
B15: this investment?
B17: A plausible assumption is that day-to-day price changes vary independently,
B18: so (by the Central Limit Theorem) we would expect the total price change
B19: over 50 trading days to be roughly normally distributed
B21: Let S represent the closing price of a share of the stock when the option expires.
A23: m | B23: =50*0.06+66 -> 69 | C23: E[S] | E23: =showformula(m) -> =50*0.06+66
A24: s | B24: =SQRT(50)*0.5 -> 3.535533906 | C24: Stdev(S) | E24: =showformula(s) -> =SQRT(50)*0.5
B26: =1-NORMDIST(70,m,s,TRUE) -> 0.3886487054 | C26: Pr( S≥70 ) | E26: =showformula(B26) -> =1-NORMDIST(70,m,s,TRUE)
B27: =m+s^2*NORMDIST(70,m,s,FALSE)/(1-NORMDIST(70,m,s,TRUE)) -> 72.4868725 | C27: E [S | S≥70 ] | E27: =showformula(B27) -> =m+s^2*NORMDIST(70,m,s,FALSE)/(1-NORMDIST(70,m,s,TRUE))
B28: =-50+(B27-70)*100*B26+0*(1-B26) -> 46.65197785 | C28: E[ net profit ] | E28: =-50+(B27-70)*100*B26+0*(1-B26)
